[Event "WTCC-65 2018"]
[Site "Radebeul"]
[Date "2018.07.08"]
[Round "2"]
[White "Karasev, Vladimir I"]
[Black "Dickhoff, Ronald"]
[Result "1-0"]
[ECO "A45"]
[WhiteElo "2337"]
[BlackElo "2100"]
[Annotator "NA"]
[PlyCount "101"]
[EventDate "2018.07.07"]
[EventType "team-tourn"]
[EventCountry "GER"]
[SourceTitle "playchess.com"]
[Source "ChessBase"]
[SourceQuality "1"]
[TimeControl "40/5400+30:1800+30"]

1. d4 {[%emt 0:00:00]} Nf6 {[%emt 0:00:00]} 2. Bg5 {[%emt 0:00:00]} e6 {[%emt 0:00:13]} 3. e4 {[%emt 0:00:20]} h6 {[%emt 0:00:19]} 4. Bxf6 {[%emt 0:00:05]} Qxf6 {[%emt 0:00:06]} 5. Nf3 {[%emt 0:00:17]} d6 {[%emt 0:01:53]} 6. Nc3 {[%emt 0:00:20]} g6 {[%emt 0:01:49]} 7. e5 {[%emt 0:00:47] A46: 1 d4 Nf6 2 Nf3 e6: Torre, London and Colle Systems} (7. Qd2 Bg7 8. h4 a6 9. O-O-O Nd7 10. e5 Qe7 11. Qf4 d5 12. Qe3 c5 13. Re1 b5 14. h5 g5 15. Nh2 Bb7 {0-1 (37) Djordjevic,V (2432)-Eljanov,P (2757) Novi Sad 2016}) 7... Qe7 {[%emt 0:01:57]} 8. Qd2 {[%emt 0:08:23] LiveBook: 3 Games} Bg7 {[%emt 0:07:27]} 9. O-O-O {[%emt 0:05:49]} Bd7 {[%emt 0:06:50]} 10. h4 {[%emt 0:01:45]} Nc6 {[%emt 0:16:02]} 11. exd6 {[%emt 0:05:21]} cxd6 {[%emt 0:00:44]} 12. d5 {[%emt 0:00:44]} Ne5 {[%emt 0:15:36]} 13. dxe6 $146 {[%emt 0:02:25]} ({Predecessor:} 13. Nd4 O-O 14. f4 Ng4 15. dxe6 fxe6 {1-0 (35) Hebert,J (2395)-Sasseville,J Quebec 1984}) 13... Bxe6 {[%emt 0:04:08]} 14. Bb5+ {[%emt 0:01:15]} ({Much weaker is} 14. Qxd6 Qxd6 15. Rxd6 Nxf3 $15) 14... Kf8 {[%emt 0:02:42]} 15. Nd4 {[%emt 0:07:34]} a6 {[%emt 0:05:07]} 16. Be2 {[%emt 0:00:41]} Rc8 {[%emt 0:10:03]} 17. Nxe6+ {[%emt 0:06:06]} Qxe6 $16 {[%emt 0:01:30]} 18. Qxd6+ {[%emt 0:01:00]} Qxd6 {[%emt 0:00:24]} 19. Rxd6 {[%emt 0:00:04]} Nc4 {[%emt 0:06:58]} 20. Bxc4 {[%emt 0:01:03]} Bxc3 {[%emt 0:01:42]} 21. Bd5 {[%emt 0:07:47]} Be5 {[%emt 0:04:06]} 22. Rb6 {[%emt 0:01:01]} Rc7 {[%emt 0:01:09]} 23. Rxb7 {[%emt 0:00:32]} Rxb7 {[%emt 0:01:49]} 24. Bxb7 {[%emt 0:00:05]} a5 {[%emt 0:00:34]} 25. Rd1 {[%emt 0:01:13]} Kg7 {[%emt 0:00:12]} 26. Rd5 {[%emt 0:00:37]} Bf4+ {[%emt 0:01:08]} 27. Kd1 {[%emt 0:00:09]} Rb8 {[%emt 0:00:11]} 28. Rb5 {[%emt 0:01:36]} Kf6 {[%emt 0:01:36]} 29. a4 {[%emt 0:02:36]} Rd8+ {[%emt 0:01:57]} 30. Bd5 {[%emt 0:00:49]} Bc7 {[%emt 0:02:32]} 31. Ke2 {[%emt 0:00:50]} Re8+ {[%emt 0:00:19]} 32. Kf3 {[%emt 0:00:22]} Ke7 {[%emt 0:01:43]} 33. Rc5 {[%emt 0:09:21]} Bb6 {[%emt 0:01:21]} 34. Rc6 {[%emt 0:00:39]} Rb8 {[%emt 0:00:15]} 35. b3 {[%emt 0:00:42]} h5 {[%emt 0:00:31]} 36. c3 {[%emt 0:02:01]} Bd8 {[%emt 0:01:06]} 37. g3 {[%emt 0:05:25]} Ke8 {[%emt 0:01:04]} 38. Ke4 {[%emt 0:01:21]} Ke7 {[%emt 0:00:27]} 39. f4 {[%emt 0:01:17]} Bb6 {[%emt 0:00:44]} 40. b4 {[%emt 0:05:04]} Bd8 {[%emt 0:00:18]} 41. b5 {[%emt 0:31:09]} Rb6 {[%emt 0:01:28]} 42. Rc8 {[%emt 0:00:00]} Rd6 {[%emt 0:01:06]} 43. c4 {[%emt 0:00:00]} Kd7 {[%emt 0:00:59]} 44. Ra8 {[%emt 0:00:00]} f5+ {[%emt 0:00:39]} 45. Kd4 {[%emt 0:00:00]} Bf6+ {[%emt 0:00:06]} 46. Kc5 {[%emt 0:00:00]} Be7 {[%emt 0:02:43]} 47. Ra7+ {[%emt 0:00:00]} Kd8 {[%emt 0:00:44]} 48. b6 {[%emt 0:00:00]} Rd7+ {[%emt 0:04:48]} 49. Kb5 {[%emt 0:00:00]} Bb4 {[%emt 0:00:22]} 50. Rxd7+ {[%emt 0:00:00]} Kxd7 {[%emt 0:00:01]} 51. c5 {[%emt 0:00:00]} 1-0

[Event "WTCC-65 2018"]
[Site "Radebeul"]
[Date "2018.07.08"]
[Round "2"]
[White "Buchal, Stephan"]
[Black "Van Herck, Marcel"]
[Result "1-0"]
[ECO "B12"]
[WhiteElo "2329"]
[BlackElo "2008"]
[Annotator "NA"]
[PlyCount "41"]
[EventDate "2018.07.07"]
[EventType "team-tourn"]
[EventCountry "GER"]
[SourceTitle "playchess.com"]
[Source "ChessBase"]
[SourceQuality "1"]
[TimeControl "40/5400+30:1800+30"]

1. e4 {[%emt 0:00:02]} c6 {[%emt 0:00:00]} 2. d4 {[%emt 0:00:19]} d5 {[%emt 0:00:00]} 3. e5 {[%emt 0:00:12]} Bf5 {[%emt 0:03:11]} 4. Nf3 {[%emt 0:00:25]} e6 {[%emt 0:00:36]} 5. Be2 {[%emt 0:00:12]} Nd7 {[%emt 0:05:11]} 6. O-O {[%emt 0:00:39]} Ne7 {[%emt 0:03:42]} 7. Nbd2 {[%emt 0:01:08]} Nc8 {[%emt 0:02:27] LiveBook: 116 Games} 8. a4 {[%emt 0:02:06]} a5 {[%emt 0:09:05]} 9. Ne1 {[%emt 0:07:59]} g5 {[%emt 0:11:56]} 10. Bd3 {[%emt 0:03:45]} Bg6 {[%emt 0:04:35]} 11. Bxg6 {[%emt 0:14:36]} hxg6 {[%emt 0:02:55]} 12. Nd3 {[%emt 0:02:37]} g4 $16 {[%emt 0:04:05]} 13. Qxg4 {[%emt 0:10:58]} Rh4 {[%emt 0:00:12]} 14. Qg3 {[%emt 0:04:35]} Rxd4 {[%emt 0:00:12]} 15. Nf3 {[%emt 0:03:14]} Rc4 {[%emt 0:00:45]} 16. b3 {[%emt 0:06:41]} Rxc2 {[%emt 0:00:22]} 17. Nd4 {[%emt 0:00:51]} Rxc1 {[%emt 0:11:20]} 18. Raxc1 {[%emt 0:00:26]} Qb6 {[%emt 0:00:28]} 19. Nxe6 {[%emt 0:11:11]} fxe6 {[%emt 0:00:38]} 20. Qxg6+ {[%emt 0:00:02]} Kd8 {[%emt 0:00:20]} 21. Nf4 {[%emt 0:02:06]} 1-0

[Event "WTCC-65 2018"]
[Site "Radebeul"]
[Date "2018.07.08"]
[Round "2"]
[White "Faibisovich, Vadim Z"]
[Black "Van Egmond, Rogier M"]
[Result "1-0"]
[ECO "B48"]
[WhiteElo "2312"]
[BlackElo "2147"]
[Annotator "NA"]
[PlyCount "91"]
[EventDate "2018.07.07"]
[EventType "team-tourn"]
[EventCountry "GER"]
[SourceTitle "playchess.com"]
[Source "ChessBase"]
[SourceQuality "1"]
[TimeControl "40/5400+30:1800+30"]

1. e4 {[%emt 0:00:00]} c5 {[%emt 0:00:00]} 2. Nf3 {[%emt 0:00:46]} e6 {[%emt 0:00:00]} 3. Nc3 Nc6 4. d4 {[%emt 0:01:43]} cxd4 {[%emt 0:00:00]} 5. Nxd4 {[%emt 0:00:07]} Qc7 {[%emt 0:00:04]} 6. Be3 {[%emt 0:05:10]} a6 7. Bd3 {[%emt 0:10:38]} Nf6 {[%emt 0:00:41]} 8. O-O {[%emt 0:05:33]} Nxd4 {[%emt 0:00:23]} 9. Bxd4 {[%emt 0:00:36]} Bc5 {[%emt 0:00:03]} 10. Bxc5 {[%emt 0:04:23]} Qxc5 {[%emt 0:00:13]} 11. Na4 {[%emt 0:07:53]} Qc7 {[%emt 0:11:53] B48: Sicilian: Taimanov: 5 Nc3 Qc7 6 Be3 a6 without Be2} 12. c4 {[%emt 0:04:01]} d6 {[%emt 0:00:28]} 13. Rc1 {[%emt 0:04:59]} Bd7 {[%emt 0:05:59]} 14. Nc3 {[%emt 0:02:19]} O-O {[%emt 0:03:08] LiveBook: 7 Games} 15. Qe2 {[%emt 0:02:33]} Rac8 {[%emt 0:04:00] [#]} 16. Rc2 $146 {[%emt 0:09:34]} ({Predecessor:} 16. Rfe1 Qc5 17. e5 Qxe5 18. Qxe5 dxe5 19. Rxe5 Rfd8 {½-½ (19) Bauer,C (2612)-Lautier,J (2658) Clichy 2001}) 16... Rfd8 {[%emt 0:03:43]} 17. Rd1 {[%emt 0:01:10]} Qa5 {[%emt 0:08:33]} 18. h3 {[%emt 0:08:31]} b5 {[%emt 0:11:07]} 19. cxb5 {[%emt 0:04:11]} axb5 {[%emt 0:00:13]} 20. e5 {[%emt 0:08:31]} dxe5 {[%emt 0:02:30]} 21. Qxe5 {[%emt 0:00:21]} Qb6 {[%emt 0:02:39]} 22. Bxb5 {[%emt 0:07:47]} Bxb5 {[%emt 0:09:34]} 23. Rxd8+ {[%emt 0:00:12]} Qxd8 {[%emt 0:04:32]} 24. Qxb5 {[%emt 0:00:27]} Qd4 {[%emt 0:12:18]} 25. Qe2 {[%emt 0:00:37]} Rd8 {[%emt 0:02:21]} 26. Rc1 {[%emt 0:02:55]} Nd5 {[%emt 0:02:31]} 27. Nxd5 {[%emt 0:00:49]} exd5 {[%emt 0:00:01]} 28. Rd1 {[%emt 0:00:58]} Qf6 {[%emt 0:03:31]} 29. Rxd5 {[%emt 0:00:31]} Rc8 {[%emt 0:00:31]} 30. Rd1 {[%emt 0:01:32]} g6 {[%emt 0:00:27]} 31. Qd2 {[%emt 0:02:49]} Qf5 {[%emt 0:01:17]} 32. Rc1 {[%emt 0:00:54]} Ra8 {[%emt 0:00:48]} 33. a3 {[%emt 0:00:29]} h5 {[%emt 0:00:04]} 34. Qd4 {[%emt 0:00:56]} Re8 {[%emt 0:01:40]} 35. Rc5 $18 {[%emt 0:01:43]} Qe6 {[%emt 0:04:10]} 36. Rd5 {[%emt 0:00:14]} Kh7 {[%emt 0:00:32]} 37. a4 {[%emt 0:01:08]} Qe1+ {[%emt 0:02:30]} 38. Kh2 {[%emt 0:00:03]} Re2 {[%emt 0:00:01]} 39. Rd8 {[%emt 0:00:29]} Re5 {[%emt 0:01:18]} 40. f4 {[%emt 0:00:35]} Re8 {[%emt 0:00:19]} 41. Rxe8 {[%emt 0:30:35]} Qxe8 {[%emt 0:30:02]} 42. a5 {[%emt 0:00:36]} Qb5 {[%emt 0:01:21]} 43. b4 {[%emt 0:01:20]} h4 {[%emt 0:00:10]} 44. Qf6 {[%emt 0:00:00]} Qxb4 {[%emt 0:00:00]} 45. Qxf7+ {[%emt 0:00:00]} Kh6 {[%emt 0:00:00]} 46. Qf6 1-0

[Event "WTCC-65 2018"]
[Site "Radebeul"]
[Date "2018.07.08"]
[Round "2"]
[White "Baum, Bernd"]
[Black "Haubt, Georg"]
[Result "1/2-1/2"]
[ECO "A34"]
[WhiteElo "2280"]
[BlackElo "2149"]
[Annotator "NA"]
[PlyCount "41"]
[EventDate "2018.07.07"]
[EventType "team-tourn"]
[EventCountry "GER"]
[SourceTitle "playchess.com"]
[Source "ChessBase"]
[SourceQuality "1"]
[TimeControl "40/5400+30:1800+30"]

1. c4 {[%emt 0:00:00]} c5 {[%emt 0:00:03]} 2. g3 {[%emt 0:00:00]} Nf6 {[%emt 0:00:44]} 3. Bg2 {[%emt 0:00:09]} d5 {[%emt 0:00:23]} 4. cxd5 {[%emt 0:00:04]} Nxd5 {[%emt 0:00:09]} 5. Nc3 {[%emt 0:00:02]} Nc7 {[%emt 0:00:14]} 6. d3 {[%emt 0:04:29]} e5 {[%emt 0:01:23]} 7. Nf3 {[%emt 0:04:29]} Nc6 {[%emt 0:00:09]} 8. O-O {[%emt 0:00:10]} Be7 {[%emt 0:00:22]} 9. Nd2 {[%emt 0:01:08]} Nd4 {[%emt 0:12:23]} 10. Nc4 {[%emt 0:02:35]} f6 {[%emt 0:00:24]} 11. e3 {[%emt 0:07:27]} Nc6 {[%emt 0:06:48]} 12. Qh5+ {[%emt 0:23:15]} g6 {[%emt 0:01:03]} 13. Qe2 {[%emt 0:00:15]} Bf5 {[%emt 0:02:32]} 14. Rd1 {[%emt 0:01:39]} (14. Bxc6+ $14 bxc6 15. Ne4) 14... Qd7 $11 {[%emt 0:01:01]} 15. a4 {[%emt 0:09:51]} Rd8 {[%emt 0:06:02]} 16. Nb5 {[%emt 0:02:02]} Nb4 {[%emt 0:06:50]} 17. e4 {[%emt 0:12:42]} Be6 {[%emt 0:01:44]} 18. Nxc7+ {[%emt 0:03:11]} Qxc7 {[%emt 0:00:02]} 19. Bh6 {[%emt 0:01:47]} Bf8 {[%emt 0:06:59]} 20. Be3 {[%emt 0:00:58]} Bg7 {[%emt 0:11:24]} 21. Rac1 {[%emt 0:01:31]} 1/2-1/2

[Event "WTCC-65 2018"]
[Site "Radebeul"]
[Date "2018.07.08"]
[Round "2"]
[White "Khanukov, Boris"]
[Black "Etzold, Ernst Walter"]
[Result "1/2-1/2"]
[ECO "D58"]
[WhiteElo "2273"]
[BlackElo "2088"]
[Annotator "NA"]
[PlyCount "56"]
[EventDate "2018.07.07"]
[EventType "team-tourn"]
[EventCountry "GER"]
[SourceTitle "playchess.com"]
[Source "ChessBase"]
[SourceQuality "1"]
[TimeControl "40/5400+30:1800+30"]

1. d4 {[%emt 0:00:00]} d5 {[%emt 0:00:00]} 2. c4 {[%emt 0:00:00]} e6 {[%emt 0:00:00]} 3. Nc3 {[%emt 0:00:00]} Nf6 {[%emt 0:00:08]} 4. Bg5 {[%emt 0:00:28]} Be7 {[%emt 0:00:21]} 5. e3 {[%emt 0:01:01]} h6 {[%emt 0:02:19]} 6. Bh4 {[%emt 0:00:23]} O-O {[%emt 0:01:29]} 7. Nf3 {[%emt 0:01:13]} b6 {[%emt 0:00:46]} 8. cxd5 {[%emt 0:01:33] LiveBook: 707 Games} exd5 {[%emt 0:05:44]} 9. Rc1 {[%emt 0:07:13]} Bb7 {[%emt 0:05:30]} 10. Be2 {[%emt 0:00:46]} Nbd7 {[%emt 0:11:02]} 11. O-O {[%emt 0:00:21]} a6 {[%emt 0:02:53]} 12. Ne5 {[%emt 0:06:49]} Ne4 {[%emt 0:12:43]} (12... Nxe5 $11 {keeps the balance.} 13. dxe5 Ne4 14. Bxe7 Qxe7) 13. Bxe7 $16 {[%emt 0:04:03]} Qxe7 {[%emt 0:00:13]} 14. Nxe4 {[%emt 0:19:39]} Nxe5 {[%emt 0:00:54]} 15. Ng3 {[%emt 0:01:19]} Ng6 {[%emt 0:03:52]} 16. Bd3 {[%emt 0:00:47]} c5 {[%emt 0:02:06]} 17. dxc5 {[%emt 0:04:12]} bxc5 {[%emt 0:00:08]} 18. Bxg6 {[%emt 0:00:49]} fxg6 {[%emt 0:00:47]} 19. Qc2 {[%emt 0:00:14]} Qf6 {[%emt 0:00:54]} 20. Qxc5 {[%emt 0:00:36]} Rac8 {[%emt 0:00:28]} 21. Qd4 {[%emt 0:00:48]} Rxc1 {[%emt 0:00:02]} 22. Rxc1 {[%emt 0:01:23]} Qxf2+ {[%emt 0:00:03]} 23. Kh1 {[%emt 0:00:17]} Rf7 {[%emt 0:06:20]} 24. Rg1 {[%emt 0:06:42]} Re7 {[%emt 0:10:05]} 25. Nf1 {[%emt 0:00:30]} Kh7 {[%emt 0:00:44]} 26. h3 {[%emt 0:01:46]} Qf6 {[%emt 0:08:36]} 27. Nd2 {[%emt 0:10:00]} Qf2 {[%emt 0:01:09]} 28. Nf1 {[%emt 0:05:21]} Qf6 {[%emt 0:02:07]} 1/2-1/2

[Event "WTCC-65 2018"]
[Site "Radebeul"]
[Date "2018.07.08"]
[Round "2"]
[White "Espig, Lutz"]
[Black "Rotstein, Jefim"]
[Result "1/2-1/2"]
[ECO "A04"]
[WhiteElo "2258"]
[BlackElo "2318"]
[Annotator "ChessBase"]
[PlyCount "29"]
[EventDate "2018.07.07"]
[EventType "team-tourn"]
[EventCountry "GER"]
[SourceTitle "playchess.com"]
[Source "ChessBase"]
[SourceQuality "1"]
[TimeControl "40/5400+30:1800+30"]

1. Nf3 {[%emt 0:00:00]} g6 {[%emt 0:00:00]} 2. e4 {[%emt 0:00:00]} Bg7 {[%emt 0:00:17]} 3. d4 {[%emt 0:00:00]} d6 {[%emt 0:00:53]} 4. h3 {[%emt 0:02:16]} c6 {[%emt 0:02:37]} 5. a4 {[%emt 0:01:06]} Nf6 {[%emt 0:03:28]} 6. Nc3 {[%emt 0:01:28]} a5 {[%emt 0:00:43]} 7. Be3 {[%emt 0:01:31]} O-O {[%emt 0:02:15]} 8. Qd2 {[%emt 0:04:14]} d5 {[%emt 0:02:10]} 9. e5 {[%emt 0:04:09]} Ne8 {[%emt 0:05:10]} 10. Bh6 {[%emt 0:07:09]} f6 {[%emt 0:00:58]} 11. Bxg7 {[%emt 0:03:43]} Nxg7 {[%emt 0:00:24]} 12. Bd3 {[%emt 0:03:55]} Nd7 {[%emt 0:02:19]} 13. exf6 {[%emt 0:15:22]} exf6 {[%emt 0:00:41]} 14. O-O {[%emt 0:00:35]} Nb6 {[%emt 0:01:24]} 15. Rfe1 {[%emt 0:02:24]} 1/2-1/2

[Event "WTCC-65 2018"]
[Site "Radebeul"]
[Date "2018.07.08"]
[Round "2"]
[White "Bernard, Christophe"]
[Black "Gneiss, Karl"]
[Result "1-0"]
[ECO "E15"]
[WhiteElo "2253"]
[BlackElo "2090"]
[Annotator "NA"]
[PlyCount "63"]
[EventDate "2018.07.07"]
[EventType "team-tourn"]
[EventCountry "GER"]
[SourceTitle "playchess.com"]
[Source "ChessBase"]
[SourceQuality "1"]
[TimeControl "40/5400+30:1800+30"]

1. d4 {[%emt 0:00:00]} Nf6 {[%emt 0:00:00]} 2. Nf3 {[%emt 0:00:08]} e6 {[%emt 0:00:07]} 3. c4 {[%emt 0:00:39]} b6 {[%emt 0:01:11]} 4. g3 {[%emt 0:01:00]} d5 {[%emt 0:02:57]} 5. Bg2 {[%emt 0:00:19]} Bb7 {[%emt 0:00:55]} 6. cxd5 {[%emt 0:03:51]} exd5 {[%emt 0:01:12]} 7. Nc3 {[%emt 0:00:20]} Be7 {[%emt 0:01:00]} 8. Qa4+ {[%emt 0:14:00]} c6 {[%emt 0:08:35] LiveBook: 8 Games} 9. Ne5 {[%emt 0:05:44]} O-O {[%emt 0:01:16]} 10. O-O {[%emt 0:00:25]} Nfd7 {[%emt 0:08:42] E17: Queen's Indian: 4 g3 Bb7 5 Bg2 Be7} 11. Nd3 {[%emt 0:09:28]} a5 {[%emt 0:08:12]} 12. a3 {[%emt 0:06:43]} Bf6 {[%emt 0:07:53]} 13. Be3 $146 {[%emt 0:01:30]} ({Predecessor:} 13. Nf4 b5 14. Qd1 Qb6 15. Be3 g6 {1-0 (38) Miles,A (2579)-Straub,P (2126) Nova Gorica 2000}) 13... Na6 {[%emt 0:04:21]} 14. Rac1 {[%emt 0:05:25]} Nc7 {[%emt 0:01:41]} 15. Qd1 {[%emt 0:03:32]} Ne6 {[%emt 0:05:37]} 16. Nf4 {[%emt 0:00:29]} Re8 {[%emt 0:02:30]} 17. Qd2 {[%emt 0:02:51]} Ba6 {[%emt 0:02:29]} 18. Rfe1 {[%emt 0:02:18]} Ndf8 {[%emt 0:02:33]} 19. Nxe6 {[%emt 0:07:37]} Nxe6 {[%emt 0:00:33]} 20. Rcd1 {[%emt 0:11:37]} Bc4 {[%emt 0:01:41]} 21. Qc2 {[%emt 0:00:24]} Qd6 {[%emt 0:02:22]} 22. f4 {[%emt 0:00:48]} Rad8 {[%emt 0:17:31]} 23. Bf2 {[%emt 0:01:48]} a4 {[%emt 0:08:37]} 24. Nxa4 {[%emt 0:02:46]} b5 {[%emt 0:02:56]} 25. Nc5 {[%emt 0:03:53]} Bxd4 {[%emt 0:04:25] [#]} 26. Nb7 $1 {[%emt 0:01:15]} Bxf2+ {[%emt 0:00:30]} 27. Kxf2 {[%emt 0:00:01]} Qc7 {[%emt 0:00:44]} 28. Nxd8 {[%emt 0:00:03]} Qb6+ $18 {[%emt 0:01:14]} (28... Nc5 $142 29. Nxc6 Qxc6) 29. e3 {[%emt 0:01:20]} Nc5 {[%emt 0:00:37]} 30. b4 {[%emt 0:04:39]} Nd3+ {[%emt 0:00:18]} 31. Rxd3 {[%emt 0:00:20]} Bxd3 {[%emt 0:00:03]} 32. Qxd3 {[%emt 0:00:14]} 1-0

[Event "WTCC-65 2018"]
[Site "Radebeul"]
[Date "2018.07.08"]
[Round "2"]
[White "Kierzek, Matthias"]
[Black "Biller, Helmut"]
[Result "1/2-1/2"]
[ECO "D37"]
[WhiteElo "2247"]
[BlackElo "2072"]
[Annotator "NA"]
[PlyCount "93"]
[EventDate "2018.07.07"]
[EventType "team-tourn"]
[EventCountry "GER"]
[SourceTitle "playchess.com"]
[Source "ChessBase"]
[SourceQuality "1"]
[TimeControl "40/5400+30:1800+30"]

1. d4 {[%emt 0:00:00] Sumets,A} d5 {[%emt 0:00:00]} 2. c4 {[%emt 0:00:00]} e6 {[%emt 0:00:00]} 3. Nc3 {[%emt 0:00:00]} Nf6 {[%emt 0:00:02]} 4. Nf3 {[%emt 0:00:10]} Be7 {[%emt 0:00:49]} 5. Bf4 {[%emt 0:00:15]} O-O {[%emt 0:02:09]} 6. e3 {[%emt 0:00:08]} c5 {[%emt 0:00:36]} 7. dxc5 {[%emt 0:00:10]} Bxc5 {[%emt 0:00:20]} 8. cxd5 {[%emt 0:00:05]} Nxd5 {[%emt 0:04:24]} 9. Nxd5 {[%emt 0:00:06]} exd5 {[%emt 0:00:08]} 10. Bd3 {[%emt 0:00:07] LiveBook: 83 Partien} Bb4+ {[%emt 0:03:37] D37: Queen's Gambit Declined: 5 Bf4} 11. Nd2 {[%emt 0:00:06]} Nc6 {[%emt 0:05:17]} 12. O-O {[%emt 0:02:25]} Be6 {[%emt 0:05:06]} 13. Nf3 {[%emt 0:16:41] [#]} h6 $146 {[%emt 0:04:05]} ({Predecessor:} 13... Be7 14. Rc1 Bf6 15. a3 Qe7 16. b4 a6 17. h3 Rac8 18. Rc5 {1-0 (33) Nepomniachtchi,I (2742)-Nakamura,H (2792) Saint Louis 2017 CBM 180 [Sumets,A]}) 14. Bc2 {[%emt 0:04:05]} Qf6 {[%emt 0:08:51]} 15. Qd3 {[%emt 0:02:41]} Rfc8 {[%emt 0:14:32]} 16. Qh7+ {[%emt 0:13:50]} Kf8 {[%emt 0:00:03]} 17. a3 {[%emt 0:00:36]} g5 {[%emt 0:00:10]} 18. Bg3 {[%emt 0:02:27]} Be7 {[%emt 0:01:51]} 19. b4 {[%emt 0:09:23]} Qg7 {[%emt 0:01:44]} 20. Qd3 {[%emt 0:01:23]} a6 {[%emt 0:03:31]} 21. Bb3 {[%emt 0:04:16]} Rd8 {[%emt 0:00:57]} 22. Rac1 {[%emt 0:10:20]} Rac8 {[%emt 0:07:03]} 23. Rc2 {[%emt 0:08:53]} Qf6 {[%emt 0:06:18]} 24. Qd2 {[%emt 0:02:04]} Bf5 {[%emt 0:10:12]} 25. Rcc1 {[%emt 0:01:15]} Be4 26. Nd4 {[%emt 0:00:45]} Nxd4 {[%emt 0:02:25]} 27. exd4 {[%emt 0:01:13]} Rxc1 {[%emt 0:03:12]} 28. Rxc1 {[%emt 0:00:08]} Bd6 {[%emt 0:00:26]} 29. f3 {[%emt 0:02:49]} Bf5 {[%emt 0:02:20]} 30. Re1 {[%emt 0:00:58]} Bxg3 {[%emt 0:02:14]} 31. hxg3 {[%emt 0:00:02]} Qd6 {[%emt 0:00:36]} 32. Re5 {[%emt 0:01:12]} Be6 {[%emt 0:00:17]} 33. f4 {[%emt 0:02:37]} f6 {[%emt 0:00:33]} 34. Re1 {[%emt 0:01:02]} Bf5 {[%emt 0:01:45]} 35. Bc2 {[%emt 0:01:02]} Bxc2 {[%emt 0:03:20]} 36. Qxc2 {[%emt 0:00:01]} Kg7 {[%emt 0:00:18]} 37. Qc5 {[%emt 0:06:37]} Kf7 {[%emt 0:05:02]} 38. f5 {[%emt 0:01:26]} Rd7 {[%emt 0:00:46]} 39. Qc8 {[%emt 0:00:24]} Re7 {[%emt 0:00:23]} 40. Re6 {[%emt 0:06:23]} Rxe6 {[%emt 0:03:05]} 41. fxe6+ {[%emt 0:30:13]} Qxe6 {[%emt 0:30:10]} 42. Qxb7+ {[%emt 0:00:06]} Kg6 {[%emt 0:00:34]} 43. Kh2 {[%emt 0:00:00]} h5 $11 {[%emt 0:00:00]} 44. Qb8 {[%emt 0:00:00]} Qe4 {[%emt 0:00:00]} 45. Qg8+ Kh6 {[%emt 0:00:00]} 46. Qf8+ {[%emt 0:00:00]} Kg6 {[%emt 0:00:00]} 47. Qg8+ {[%emt 0:00:00]} 1/2-1/2

[Event "WTCC-65 2018"]
[Site "Radebeul"]
[Date "2018.07.08"]
[Round "2"]
[White "Povah, Nigel E"]
[Black "Lenk, Wolfgang"]
[Result "1-0"]
[ECO "A45"]
[WhiteElo "2245"]
[BlackElo "2156"]
[Annotator "NA"]
[PlyCount "51"]
[EventDate "2018.07.07"]
[EventType "team-tourn"]
[EventCountry "GER"]
[SourceTitle "playchess.com"]
[Source "ChessBase"]
[SourceQuality "1"]
[TimeControl "40/5400+30:1800+30"]

1. d4 {[%emt 0:00:00]} Nf6 {[%emt 0:00:00]} 2. Bf4 {[%emt 0:01:06]} g6 {[%emt 0:00:07]} 3. Nc3 {[%emt 0:00:11]} d6 {[%emt 0:00:50]} 4. e4 {[%emt 0:00:16]} Bg7 {[%emt 0:00:38]} 5. Qd2 {[%emt 0:00:18]} Nbd7 {[%emt 0:12:42] LiveBook: 7 Partien} 6. Bh6 {[%emt 0:08:57]} Bxh6 {[%emt 0:01:15]} 7. Qxh6 {[%emt 0:00:05]} c5 {[%emt 0:00:32]} 8. O-O-O {[%emt 0:00:28]} cxd4 {[%emt 0:04:16]} 9. Rxd4 {[%emt 0:00:08]} Qb6 {[%emt 0:01:48]} 10. Nf3 {[%emt 0:25:31]} a6 {[%emt 0:12:51]} 11. Bc4 {[%emt 0:04:38]} Ne5 $16 {[%emt 0:05:35]} 12. Nxe5 {[%emt 0:05:46]} Qxd4 {[%emt 0:01:13]} 13. Bxf7+ {[%emt 0:00:23]} Kd8 {[%emt 0:00:15]} 14. Qg7 {[%emt 0:01:06]} Re8 {[%emt 0:03:40]} 15. Nd3 {[%emt 0:02:39]} b5 {[%emt 0:13:01]} 16. Bxe8 {[%emt 0:04:18]} Kxe8 {[%emt 0:01:19]} 17. Nd5 {[%emt 0:04:40]} Ra7 {[%emt 0:00:48]} 18. Nxf6+ {[%emt 0:03:58]} Qxf6 {[%emt 0:02:24]} 19. Qg8+ {[%emt 0:01:03]} Kd7 {[%emt 0:00:35]} 20. f4 {[%emt 0:03:39]} Rc7 {[%emt 0:04:22]} 21. Rd1 {[%emt 0:05:10]} Ra7 {[%emt 0:07:23]} 22. e5 {[%emt 0:04:12]} dxe5 {[%emt 0:02:06]} 23. Nxe5+ {[%emt 0:02:17]} Kc7 {[%emt 0:00:12]} 24. g3 {[%emt 0:02:53]} Qe6 {[%emt 0:10:33]} 25. Qxh7 {[%emt 0:01:15]} Qf6 26. Qg8 1-0